fUST/lending_fUST_20240910
["ID","MTS","AMOUNT","RATE_DAILY","PERIOD"]
[337695718,1725970232826,-166.666666,0.00018491,2]
[337695720,1725970232836,-166.666666,0.0001861,2]
[337695721,1725970232847,-166.666666,0.0001873,2]
[337695723,1725970232856,-465.09843408,0.00018789,2]
[337695725,1725970232866,-166.666666,0.0001885,2]
[337695728,1725970232875,-3853.43279033,0.00018905,2]
[337695730,1725970232885,-166.666666,0.00018969,2]
[337695732,1725970232895,-166.666666,0.00019089,2]
[337695734,1725970232904,-185.291931,0.00019178,2]
[337695736,1725970232913,-207.3094951,0.00019178,2]
[337695738,1725970232923,-306.0,0.000192,2]
[337695740,1725970232933,-153.0,0.000192,2]
[337695742,1725970232942,-153.0,0.000192,2]
[337695744,1725970232951,-166.666666,0.00019209,2]
[337695746,1725970232960,-150.0,0.0001921,2]
[337695748,1725970232969,-153.0,0.000193,2]
[337695750,1725970232979,-164.8392579,0.000193,2]
[337695752,1725970232988,-166.666666,0.00019328,2]
[337695754,1725970232997,-300.0,0.00019352,2]
[337695756,1725970233007,-300.0,0.00019353,2]
[337695758,1725970233016,-3679.42382558,0.00019354,2]
[337695866,1725970238370,-770.39044549,0.00019354,2]
[337695868,1725970238382,-634.47793797,0.00019354,2]
[337695870,1725970238392,-671.84466698,0.00019405,2]
[337695883,1725970238508,-3181.58812335,0.00019405,2]
[337695885,1725970238518,-1000.0,0.00019571,2]
[337695887,1725970238528,-2958.12629109,0.0001959,2]
[337695889,1725970238537,-860.82,0.0001966,3]
[337695891,1725970238547,-2694.44,0.00019668,2]
[337695893,1725970238556,-5881.33,0.00019668,2]
[337695895,1725970238566,-1129.3,0.00019668,2]
[337695897,1725970238576,-1311.73,0.00019668,2]
[337695899,1725970238585,-1077.95,0.00019668,2]
[337695900,1725970238596,-1331.24,0.00019668,2]
[337695901,1725970238606,-934.09,0.00019668,2]
[337695902,1725970238615,-500.0,0.00019668,2]
[337695903,1725970238625,-500.0,0.00019668,2]
[337695904,1725970238634,-478.29324959,0.00019668,2]
[337695905,1725970238644,-202.5,0.00019668,2]
[337695906,1725970238653,-500.0,0.00019668,2]
[337695907,1725970238662,-449.34243053,0.00019668,2]
[337695908,1725970238672,-500.0,0.00019668,2]
[337695909,1725970238681,-4268.73,0.00019669,2]
[337695910,1725970238690,-500.0,0.00019669,2]
[337695911,1725970238699,-7601.7,0.00019669,2]
[337695912,1725970238708,-765.51,0.00019669,2]
[337695913,1725970238717,-3939.33,0.00019669,2]
[337695914,1725970238726,-1265.56,0.00019669,2]
[337695915,1725970238735,-1447.67,0.00019669,2]
[337695916,1725970238744,-755.92,0.00019669,2]
[337695917,1725970238754,-500.0,0.00019669,2]
[337695918,1725970238764,-500.0,0.00019669,2]
[337695919,1725970238774,-1677.05,0.00019669,2]
[337695920,1725970238784,-1495.46,0.00019669,2]
[337695921,1725970238793,-500.0,0.00019669,2]
[337695922,1725970238802,-500.0,0.00019669,2]
[337695923,1725970238811,-2072.47,0.00019669,2]
[337695924,1725970238821,-53627.2,0.00019669,2]
[337695925,1725970238833,-1886.81,0.00019669,2]
[337695926,1725970238843,-2034.29,0.00019669,2]
[337695927,1725970238852,-2330.72,0.00019669,2]
[337695928,1725970238862,-500.0,0.00019669,2]
[337695929,1725970238871,-250.06164657,0.00019669,2]
[337695930,1725970238881,-500.0,0.00019669,2]
[337695931,1725970238890,-171.02534376,0.00019669,2]
[337695932,1725970238900,-500.0,0.00019669,2]
[337695933,1725970238910,-223.88325815,0.00019669,2]
[337695934,1725970238919,-500.0,0.00019669,2]
[337695935,1725970238928,-500.0,0.00019669,2]
[337695936,1725970238937,-500.0,0.00019669,2]
[337695937,1725970238946,-171.54325074,0.00019669,2]
[337695938,1725970238956,-500.0,0.00019669,2]
[337695939,1725970238965,-500.0,0.00019669,2]
[337695940,1725970238974,-500.0,0.00019669,2]
[337695941,1725970238983,-10268.84165507,0.0001967,3]
[337695949,1725970240430,-7771.37417081,0.0001967,3]
[337695950,1725970240440,-6086.35386896,0.0001967,3]
[337695951,1725970240449,-549.37920131,0.0001967,2]
[337695952,1725970240459,-500.0,0.0001967,2]
[337695953,1725970240468,-500.0,0.0001967,2]
[337695954,1725970240478,-500.0,0.0001967,2]
[337695955,1725970240487,-500.0,0.0001967,2]
[337695956,1725970240496,-500.0,0.0001967,2]
[337695957,1725970240506,-512.08428796,0.0001967,2]
[337695958,1725970240517,-500.0,0.0001967,2]
[337695959,1725970240527,-500.0,0.0001967,2]
[337695960,1725970240536,-500.0,0.0001967,2]
[337695961,1725970240546,-782.27,0.0001967,2]
[337695962,1725970240555,-500.0,0.0001967,2]
[337695963,1725970240565,-500.0,0.0001967,2]
[337695964,1725970240574,-504.49,0.0001967,2]
[337695965,1725970240584,-500.0,0.0001967,2]
[337695966,1725970240593,-500.0,0.0001967,2]
[337695967,1725970240602,-1059.55,0.0001967,2]
[337695968,1725970240611,-500.0,0.0001967,2]
[337695969,1725970240621,-500.0,0.0001967,2]
[337695970,1725970240630,-177.49335652,0.0001967,2]
[337695971,1725970240639,-500.0,0.0001967,2]
[337695972,1725970240649,-500.0,0.0001967,2]
[337695973,1725970240659,-1298.83,0.0001967,2]
[337695974,1725970240668,-500.0,0.0001967,2]
[337695975,1725970240677,-500.0,0.0001967,2]
[337695976,1725970240686,-500.0,0.0001967,2]
[337695977,1725970240696,-500.0,0.0001967,2]
[337695978,1725970240705,-255.48,0.0001967,2]
[337695979,1725970240715,-500.0,0.0001967,2]
[337695980,1725970240724,-500.0,0.0001967,2]
[337695981,1725970240733,-1365.63,0.0001967,2]
[337695982,1725970240742,-669.8,0.0001967,2]
[337695983,1725970240752,-500.0,0.0001967,2]
[337695984,1725970240762,-500.0,0.0001967,2]
[337695985,1725970240772,-500.0,0.0001967,2]
[337695986,1725970240781,-500.0,0.0001967,2]
[337695987,1725970240792,-500.0,0.0001967,2]
[337695988,1725970240801,-552.06,0.0001967,2]
[337695989,1725970240811,-500.0,0.0001967,2]
[337695990,1725970240820,-500.0,0.0001967,2]
[337695991,1725970240829,-500.0,0.0001967,2]
[337695992,1725970240839,-500.0,0.0001967,2]
[337695993,1725970240849,-501.74265565,0.0001967,2]
[337695994,1725970240859,-500.0,0.0001967,2]
[337695995,1725970240869,-536.33,0.0001967,2]
[337695996,1725970240879,-1552.82,0.0001967,2]
[337695997,1725970240889,-500.0,0.0001967,2]
[337695998,1725970240898,-500.0,0.0001967,2]
[337695999,1725970240907,-191.57543814,0.0001967,2]
[337696000,1725970240917,-563.01,0.0001967,2]
[337696001,1725970240926,-500.0,0.0001967,2]
[337696002,1725970240935,-500.0,0.0001967,2]
[337696003,1725970240945,-500.0,0.0001967,2]
[337696004,1725970240955,-605.06,0.0001967,2]
[337696005,1725970240965,-500.0,0.0001967,2]
[337696006,1725970240975,-500.0,0.0001967,2]
[337696007,1725970241177,-500.0,0.0001967,2]
[337696008,1725970241187,-585.03,0.0001967,2]
[337696009,1725970241196,-500.0,0.0001967,2]
[337696010,1725970241207,-500.0,0.0001967,2]
[337696011,1725970241217,-1368.08,0.0001967,2]
[337696012,1725970241227,-528.12693612,0.0001967,2]
[337696013,1725970241239,-254.89578595,0.0001967,2]
[337696014,1725970241249,-500.0,0.0001967,2]
[337696015,1725970241258,-500.0,0.0001967,2]
[337696016,1725970241268,-500.0,0.0001967,2]
[337696017,1725970241278,-500.0,0.0001967,2]
[337696018,1725970241288,-500.0,0.0001967,2]
[337696019,1725970241297,-500.0,0.0001967,2]
[337696020,1725970241309,-630.49304044,0.0001967,2]
[337696021,1725970241318,-510.23244367,0.0001967,2]
[337696022,1725970241328,-661.97,0.0001967,2]
[337696023,1725970241338,-500.0,0.0001967,2]
[337696024,1725970241350,-500.0,0.0001967,2]
[337696025,1725970241360,-524.19,0.0001967,2]
[337696026,1725970241371,-500.0,0.0001967,2]
[337696027,1725970241380,-500.0,0.0001967,2]
[337696028,1725970241390,-500.0,0.0001967,2]
[337696029,1725970241401,-500.0,0.0001967,2]
[337696030,1725970241410,-1022.87,0.0001967,2]
[337696031,1725970241420,-500.0,0.0001967,2]
[337696032,1725970241431,-1233.72,0.0001967,2]
[337696033,1725970241441,-547.83,0.0001967,2]
[337696034,1725970241451,-188.38496435,0.0001967,2]
[337696035,1725970241461,-500.0,0.0001967,2]
[337696036,1725970241471,-500.0,0.0001967,2]
[337696037,1725970241482,-500.0,0.0001967,2]
[337696038,1725970241491,-968.36,0.0001967,2]
[337696039,1725970241502,-500.0,0.0001967,2]
[337696040,1725970241512,-610.0,0.0001967,2]
[337696041,1725970241523,-500.0,0.0001967,2]
[337696042,1725970241533,-1370.91,0.0001967,2]
[337696043,1725970241544,-1580.55,0.0001967,2]
[337696044,1725970241554,-500.0,0.0001967,2]
[337696045,1725970241563,-500.0,0.0001967,2]
[337696046,1725970241573,-500.0,0.0001967,2]
[337696047,1725970241584,-500.0,0.0001967,2]
[337696048,1725970241594,-500.0,0.0001967,2]
[337696049,1725970241606,-500.0,0.0001967,2]
[337696050,1725970241616,-500.0,0.0001967,2]
[337696051,1725970241625,-500.0,0.0001967,2]
[337696052,1725970241635,-500.0,0.0001967,2]
[337696053,1725970241644,-500.0,0.0001967,2]
[337696055,1725970241654,-500.0,0.0001967,2]
[337696057,1725970241664,-500.0,0.0001967,2]
[337696058,1725970241673,-688.49,0.0001967,2]
[337696060,1725970241683,-942.33,0.0001967,2]
[337696061,1725970241692,-511.04696333,0.0001967,2]
[337696062,1725970241701,-500.0,0.0001967,2]
[337696063,1725970241710,-500.0,0.0001967,2]
[337696064,1725970241720,-500.0,0.0001967,2]
[337696065,1725970241731,-500.0,0.0001967,2]
[337696066,1725970241740,-786.72,0.0001967,2]
[337696067,1725970241750,-500.0,0.0001967,2]
[337696068,1725970241760,-574.85,0.0001967,2]
[337696069,1725970241770,-500.0,0.0001967,2]
[337696070,1725970241780,-500.0,0.0001967,2]
[337696071,1725970241790,-500.0,0.0001967,2]
[337696072,1725970241800,-1573.33,0.0001967,2]
[337696073,1725970241810,-502.75652234,0.0001967,2]
[337696074,1725970241820,-500.0,0.0001967,2]
[337696075,1725970241830,-1774.62,0.0001967,2]
[337696076,1725970241840,-500.0,0.0001967,2]
[337696077,1725970241850,-500.0,0.0001967,2]
[337696078,1725970241859,-433.81708806,0.0001967,2]
[337696079,1725970241868,-500.0,0.0001967,2]
[337696080,1725970241877,-500.0,0.0001967,2]
[337696081,1725970241887,-500.0,0.0001967,2]
[337696082,1725970241897,-500.0,0.0001967,2]
[337696083,1725970241907,-879.13,0.0001967,2]
[337696084,1725970241917,-1520.47,0.0001967,2]
[337696085,1725970241926,-4268.83,0.0001967,2]
[337696086,1725970241935,-500.0,0.0001967,2]
[337696087,1725970241944,-500.0,0.0001967,2]
[337696088,1725970241954,-500.0,0.0001967,2]
[337696089,1725970241964,-500.0,0.0001967,2]
[337696090,1725970241974,-1906.75,0.0001967,2]
[337696091,1725970241983,-500.0,0.0001967,2]
[337696092,1725970241993,-500.0,0.0001967,2]
[337696093,1725970242002,-500.0,0.0001967,2]
[337696094,1725970242011,-678.04,0.0001967,2]
[337696095,1725970242021,-500.0,0.0001967,2]
[337696096,1725970242030,-500.0,0.0001967,2]
[337696097,1725970242040,-970.14,0.0001967,2]
[337696098,1725970242049,-1444.2,0.0001967,2]
[337696099,1725970242058,-3319.79,0.0001967,2]
[337696100,1725970242067,-189.17563349,0.0001967,2]
[337696270,1725971432534,-325.411432,0.00017808,2]
[337696272,1725971432544,-482.57670139,0.00018905,2]
[337696298,1725971432748,-801.90089528,0.00018905,2]
[337696300,1725971432758,-1000.0,0.00019,2]
[337696302,1725971432768,-1284.47759667,0.00019405,2]
[337696304,1725971432777,-300.0,0.00019564,2]
[337696306,1725971432788,-6107.53553509,0.00019565,2]
[337696308,1725971432797,-1000.0,0.00019567,2]
[337696310,1725971432806,-116.88589438,0.00019568,2]
[337696313,1725971432818,-848.77109088,0.00019568,2]
[337696315,1725971432830,-1796.06422386,0.00019568,2]
[337696317,1725971432840,-2582.17,0.00019659,2]
[337696319,1725971432849,-3348.8239116,0.00019659,2]
[337696406,1725971438519,-2287.4460884,0.00019659,2]
[337696407,1725971438532,-1082.24,0.00019659,2]
[337696408,1725971438545,-1257.07,0.00019659,2]
[337696409,1725971438557,-1275.77,0.00019659,2]
[337696410,1725971438569,-895.17,0.00019659,2]
[337696411,1725971438582,-500.0,0.00019659,2]
[337696412,1725971438595,-594.18006222,0.00019659,2]
[337696413,1725971438606,-1033.03,0.00019659,2]
[337696414,1725971438618,-500.0,0.00019659,2]
[337696415,1725971438630,-500.0,0.00019659,2]
[337696416,1725971438642,-500.0,0.00019659,2]
[337696417,1725971438658,-47066.26298554,0.0001966,2]
[337696418,1725971438669,-500.0,0.00019664,2]
[337696419,1725971438681,-500.0,0.00019664,2]
[337696420,1725971438693,-500.0,0.00019664,2]
[337696421,1725971438705,-500.0,0.00019664,2]
[337696422,1725971438718,-500.0,0.00019664,2]
[337696423,1725971438731,-500.0,0.00019664,2]
[337696424,1725971438744,-500.0,0.00019664,2]
[337696425,1725971438757,-500.0,0.00019664,2]
[337696426,1725971438769,-500.0,0.00019664,2]
[337696427,1725971438781,-500.0,0.00019664,2]
[337696428,1725971438793,-500.0,0.00019664,2]
[337696429,1725971438805,-500.0,0.00019664,2]
[337696430,1725971438818,-500.0,0.00019664,2]
[337696431,1725971438830,-500.0,0.00019664,2]
[337696432,1725971438842,-500.0,0.00019664,2]
[337696433,1725971438855,-500.0,0.00019664,2]
[337696434,1725971438867,-283.4301486,0.00019664,2]
[337696435,1725971438880,-150.0,0.00019665,2]
[337696436,1725971438892,-3068.15,0.00019665,2]
[337696437,1725971438905,-500.0,0.00019665,2]
[337696438,1725971438920,-3775.19,0.00019665,2]
[337696439,1725971438932,-7284.97,0.00019665,2]
[337696440,1725971438944,-924.58,0.00019665,2]
[337696441,1725971438956,-1387.35,0.00019665,2]
[337696442,1725971438968,-1212.83,0.00019665,2]
[337696443,1725971438980,-724.43,0.00019665,2]
[337696444,1725971438993,-500.0,0.00019665,2]
[337696445,1725971439005,-500.0,0.00019665,2]
[337696446,1725971439017,-1406.27,0.00019665,2]
[337696447,1725971439031,-1433.15,0.00019665,2]
[337696448,1725971439046,-500.0,0.00019665,2]
[337696449,1725971439059,-500.0,0.00019665,2]
[337696450,1725971439071,-1986.12,0.00019665,2]
[337696451,1725971439083,-36582.96846384,0.00019665,2]
[337696452,1725971439098,-10365.45343518,0.00019665,2]
[337696453,1725971439112,-4444.30810098,0.00019665,2]
[337696454,1725971439124,-1808.19,0.00019665,2]
[337696455,1725971439138,-2233.61,0.00019665,2]
[337696456,1725971439151,-1949.53,0.00019665,2]
[337696457,1725971439164,-13530.1618694,0.00019666,3]
[337696458,1725971439178,-97.56576476,0.00019666,3]
[337696459,1725971439205,-881.04454933,0.00019666,3]
[337696487,1725971440683,-500.0,0.00019659,2]
[337696489,1725971440693,-1194.42925117,0.00019666,3]
[337696491,1725971440705,-2391.72583646,0.00019666,3]
[337696493,1725971440714,-500.0,0.00019666,2]
[337696495,1725971440724,-500.0,0.00019666,2]
[337696496,1725971440735,-500.0,0.00019666,2]
[337696498,1725971440745,-785.09,0.00019666,2]
[337696500,1725971440755,-500.0,0.00019666,2]
[337696502,1725971440765,-500.0,0.00019666,2]
[337696504,1725971440774,-1244.71,0.00019666,2]
[337696506,1725971440783,-500.0,0.00019666,2]
[337696507,1725971440793,-500.0,0.00019666,2]
[337696509,1725971440802,-500.0,0.00019666,2]
[337696511,1725971440811,-670.95,0.00019666,2]
[337696513,1725971440820,-500.0,0.00019666,2]
[337696515,1725971440829,-529.05,0.00019666,2]
[337696517,1725971440841,-500.0,0.00019666,2]
[337696519,1725971440850,-462.99367383,0.00019666,2]
[337696521,1725971440859,-1488.12,0.00019666,2]
[337696523,1725971440868,-452.04369177,0.00019666,2]
[337696525,1725971440878,-500.0,0.00019666,2]
[337696527,1725971440887,-1373.03,0.00019666,2]
[337696529,1725971440897,-500.0,0.00019666,2]
[337696530,1725971440906,-500.0,0.00019666,2]
[337696532,1725971440916,-500.0,0.00019666,2]
[337696534,1725971440926,-2389.2,0.00019666,2]
[337696536,1725971440935,-500.0,0.00019666,2]
[337696538,1725971440944,-980.25,0.00019666,2]
[337696540,1725971440954,-971.86,0.00019666,2]
[337696542,1725971440965,-509.33945968,0.00019666,2]
[337696544,1725971440974,-612.57,0.00019666,2]
[337696545,1725971440983,-500.0,0.00019666,2]
[337696547,1725971440992,-1586.26,0.00019666,2]
[337696548,1725971441002,-500.0,0.00019666,2]
[337696549,1725971441011,-945.9,0.00019666,2]
[337696550,1725971441021,-500.0,0.00019666,2]
[337696551,1725971441031,-590.4,0.00019666,2]
[337696552,1725971441040,-500.0,0.00019666,2]
[337696553,1725971441049,-507.71566468,0.00019666,2]
[337696554,1725971441059,-500.0,0.00019666,2]
[337696555,1725971441069,-780.01,0.00019666,2]
[337696556,1725971441078,-596.43814746,0.00019666,2]
[337696557,1725971441087,-500.0,0.00019666,2]
[337696558,1725971441096,-175.0431526,0.00019666,2]
[337696559,1725971441106,-500.0,0.00019666,2]
[337696560,1725971441115,-583.26059181,0.00019666,2]
[337696561,1725971441124,-500.0,0.00019666,2]
[337696562,1725971441134,-500.0,0.00019666,2]
[337696563,1725971441143,-500.0,0.00019666,2]
[337696564,1725971441154,-500.0,0.00019666,2]
[337696565,1725971441164,-1579.29,0.00019666,2]
[337696566,1725971441173,-797.89,0.00019666,2]
[337696567,1725971441183,-500.0,0.00019666,2]
[337696568,1725971441193,-503.92364613,0.00019666,2]
[337696569,1725971441202,-4285.0,0.00019666,2]
[337696570,1725971441211,-500.0,0.00019666,2]
[337696571,1725971441222,-249.96882506,0.00019666,2]
[337696572,1725971441233,-500.0,0.00019666,2]
[337696573,1725971441244,-500.0,0.00019666,2]
[337696574,1725971441255,-500.0,0.00019666,2]
[337696575,1725971441266,-500.0,0.00019666,2]
[337696576,1725971441276,-1526.23,0.00019666,2]
[337696577,1725971441286,-500.0,0.00019666,2]
[337696578,1725971441298,-500.0,0.00019666,2]
[337696579,1725971441308,-500.0,0.00019666,2]
[337696580,1725971441318,-884.19,0.00019666,2]
[337696581,1725971441329,-386.61339865,0.00019666,2]
[337696582,1725971441339,-649.78,0.00019666,2]
[337696583,1725971441349,-3332.37,0.00019666,2]
[337696584,1725971441359,-1917.58,0.00019666,2]
[337696585,1725971441368,-1449.67,0.00019666,2]
[337696586,1725971441377,-500.0,0.00019666,2]
[337696587,1725971441387,-1784.85,0.00019666,2]
[337696588,1725971441397,-500.0,0.00019666,2]
[337696589,1725971441407,-500.0,0.00019666,2]
[337696590,1725971441417,-4565.46,0.00019666,2]
[337696591,1725971441426,-500.0,0.00019666,2]
[337696592,1725971441436,-500.0,0.00019666,2]
[337696593,1725971441446,-500.0,0.00019666,2]
[337696594,1725971441456,-218.15357974,0.00019666,2]
[337696595,1725971441465,-502.91650469,0.00019666,2]
[337696596,1725971441475,-503.81408358,0.00019666,2]
[337696597,1725971441484,-1571.36,0.00019666,2]
[337696598,1725971441493,-500.0,0.00019666,2]
[337696599,1725971441503,-1077.97,0.00019666,2]
[337696600,1725971441513,-448.07582262,0.00019666,2]
[337696601,1725971441523,-500.0,0.00019666,2]
[337696602,1725971441532,-621.35,0.00019666,2]
[337696603,1725971441542,-975.73,0.00019666,2]
[337696604,1725971441553,-1951.76,0.00019666,2]
[337696605,1725971441563,-3511.98,0.00019666,2]
[337696606,1725971441573,-151.0,0.00019666,2]
[337696607,1725971441583,-502.98841147,0.00019666,2]
[337696608,1725971441594,-500.0,0.00019666,2]
[337696609,1725971441604,-151.0,0.00019666,2]
[337696610,1725971441614,-615.09,0.00019666,2]
[337696611,1725971441627,-500.0,0.00019666,2]
[337696612,1725971441638,-156.49361723,0.00019666,2]
[337696613,1725971441651,-500.0,0.00019666,2]
[337696614,1725971441663,-500.0,0.00019666,2]
[337696615,1725971441673,-151.0,0.00019666,2]
[337696616,1725971441683,-1383.83,0.00019666,2]
[337696617,1725971441693,-151.0,0.00019666,2]
[337696618,1725971441704,-500.0,0.00019666,2]
[337696619,1725971441714,-667.27,0.00019666,2]
[337696620,1725971441723,-151.0,0.00019666,2]
[337696621,1725971441733,-1775.68,0.00019666,2]
[337696622,1725971441744,-500.0,0.00019666,2]
[337696623,1725971441753,-500.0,0.00019666,2]
[337696624,1725971441763,-701.54,0.00019666,2]
[337696625,1725971441774,-723.67,0.00019666,2]
[337696626,1725971441783,-265.016535,0.00019666,2]
[337696627,1725971441793,-833.59,0.00019666,2]
[337696628,1725971441803,-151.0,0.00019666,2]
[337696629,1725971441812,-1669.5,0.00019666,2]
[337696630,1725971441822,-500.0,0.00019666,2]
[337696631,1725971441832,-151.0,0.00019666,2]
[337696632,1725971441842,-500.0,0.00019666,2]
[337696633,1725971441851,-500.0,0.00019666,2]
[337696634,1725971441861,-1029.38,0.00019666,2]
[337696635,1725971441870,-289.122703,0.00019666,2]
[337696636,1725971441880,-289.122703,0.00019666,2]
[337696637,1725971441890,-503.94,0.00019666,2]
[337696638,1725971441900,-500.0,0.00019666,2]
[337696639,1725971441909,-751.39,0.00019666,2]
[337696640,1725971441919,-156.827101,0.00019666,2]
[337696641,1725971441929,-500.0,0.00019666,2]
[337696642,1725971441938,-500.0,0.00019666,2]
[337696643,1725971441947,-500.0,0.00019666,2]
[337696644,1725971441956,-212.92267992,0.00019666,2]
[337696645,1725971441965,-151.0,0.00019666,2]
[337696646,1725971441974,-500.0,0.00019666,2]
[337696647,1725971441983,-151.0,0.00019666,2]
[337696648,1725971441993,-151.0,0.00019666,2]
[337696649,1725971442002,-197.25,0.00019666,2]
[337696650,1725971442011,-524.988487,0.00019666,2]
[337696651,1725971442020,-33232.50849166,0.00019666,2]
[337696681,1725971443591,-1243.5467963,0.00019666,2]
[337696749,1725972631725,-1034.770481,0.000175,2]
[337696750,1725972631735,-309.14086,0.00017808,2]
[337696751,1725972631749,-1000.0,0.00018,2]
[337696752,1725972631759,-1000.0,0.000185,2]
[337696753,1725972631768,-465.00492179,0.00018743,2]
[337696754,1725972631778,-500.0,0.00018905,2]
[337696755,1725972631788,-500.0,0.00018975,7]
[337696756,1725972631798,-152.73,0.00018975,7]
[337696757,1725972631809,-300.0,0.00018999,2]
[337696758,1725972631819,-300.0,0.00018999,2]
[337696759,1725972631830,-150.0,0.00019,2]
[337696760,1725972631839,-153.0,0.00019,2]
[337696761,1725972631848,-153.0,0.00019,2]
[337696762,1725972631858,-153.0,0.00019,2]
[337696763,1725972631868,-11174.0,0.00019,2]
[337696764,1725972631877,-1000.0,0.00019,2]
[337696765,1725972631888,-153.0,0.00019178,2]
[337696766,1725972631897,-153.0,0.00019178,2]
[337696767,1725972631907,-153.0,0.00019178,2]
[337696768,1725972631916,-153.0,0.00019178,2]
[337696769,1725972631926,-153.0,0.00019178,2]
[337696770,1725972631936,-153.0,0.00019178,2]
[337696771,1725972631948,-784.477597,0.00019405,2]
[337696772,1725972631957,-153.0,0.00019425,2]
[337696773,1725972631967,-153.0,0.00019425,2]
[337696774,1725972631977,-153.0,0.00019425,2]
[337696775,1725972631988,-153.0,0.00019425,2]
[337696776,1725972631997,-153.0,0.00019425,2]
[337696777,1725972632007,-153.0,0.00019425,2]
[337696778,1725972632016,-153.0,0.00019425,2]
[337696779,1725972632027,-153.0,0.00019425,2]
[337696780,1725972632039,-153.0,0.00019425,2]
[337696781,1725972632049,-153.0,0.00019425,2]
[337696782,1725972632059,-153.0,0.00019425,2]
[337696783,1725972632068,-153.0,0.00019425,2]
[337696784,1725972632078,-153.0,0.00019425,2]
[337696785,1725972632088,-424.6368708,0.00019425,2]
[337696786,1725972632098,-153.0,0.000195,2]
[337696787,1725972632108,-92.47194217,0.000195,2]
[337696790,1725972637804,-60.52805783,0.000195,2]
[337696791,1725972637814,-1000.0,0.000195,2]
[337696792,1725972637824,-153.0,0.000195,2]
[337696793,1725972637834,-5647.09748337,0.00019556,2]
[337696794,1725972637844,-418.77410252,0.00019557,2]
[337696795,1725972637854,-1000.0,0.00019559,2]
[337696796,1725972637863,-418.77410252,0.0001956,2]
[337696797,1725972637873,-418.77410252,0.00019562,2]
[337696798,1725972637882,-2578.74636438,0.00019563,2]
[337696799,1725972637891,-418.77410252,0.00019565,2]
[337696800,1725972637901,-418.77410252,0.00019567,2]
[337696801,1725972637911,-153.0,0.000196,2]
[337696802,1725972637921,-857.87,0.00019655,2]
[337696803,1725972637930,-500.0,0.00019656,2]
[337696804,1725972637940,-500.0,0.00019656,2]
[337696805,1725972637951,-511.45114473,0.00019656,2]
[337696806,1725972637960,-500.0,0.00019656,2]
[337696807,1725972637970,-500.0,0.00019656,2]
[337696808,1725972637980,-500.0,0.00019656,2]
[337696809,1725972637989,-500.0,0.00019656,2]
[337696810,1725972638001,-500.0,0.00019656,2]
[337696811,1725972638011,-500.0,0.00019656,2]
[337696812,1725972638020,-500.0,0.00019656,2]
[337696813,1725972638030,-500.0,0.00019656,2]
[337696814,1725972638042,-500.0,0.00019656,2]
[337696815,1725972638053,-63.49407125,0.00019656,2]
[337696822,1725972639868,-436.50592875,0.00019656,2]
[337696823,1725972639878,-500.0,0.00019656,2]
[337696825,1725972639888,-500.0,0.00019656,2]
[337696826,1725972639898,-500.0,0.00019656,2]
[337696827,1725972639907,-506.31,0.00019656,2]
[337696828,1725972639916,-500.0,0.00019656,2]